﻿Department family,Entity,Date,Expense type,Expense area,Supplier,Transaction number,Amount,VAT registration number
Dept of Health,MHRA,02/03/2018,Infrastructure Services and Maintenance,Information Management,NTT Data UK Ltd,4011151,"138,788.60",159334590
Dept of Health,MHRA,05/03/2018,Relocation,Finance & Procurement,Redrock Consulting Ltd,7573,"65,923.34",862247715
Dept of Health,MHRA,07/03/2018,Travel and Subsistence,Finance & Procurement,Clarity Travel Management,MHRA0023,"192,438.90",197694731
Dept of Health,MHRA,07/03/2018,Library & Periodical Subscriptions,Communications,LM Information Delivery,1526958,"197,872.42",112627053
Dept of Health,MHRA,07/03/2018,Infrastructure Services and Maintenance,Information Management,Redrock Consulting Ltd,7581,"49,824.96",862247715
Dept of Health,MHRA,07/03/2018,Infrastructure Services and Maintenance,Information Management,Redrock Consulting Ltd,7582,"38,702.06",862247715
Dept of Health,MHRA,07/03/2018,Application Services and Maintenance,Information Management,Redrock Consulting Ltd,7583,"53,248.44",862247715
Dept of Health,MHRA,09/03/2018,Application Services and Maintenance,Information Management,Accenture (UK) Limited,3003385980,"265,145.72",788629066
Dept of Health,MHRA,09/03/2018,Application Services and Maintenance,Information Management,Accenture (UK) Limited,3003386005,"26,500.01",788629066
Dept of Health,MHRA,09/03/2018,Application Services and Maintenance,Information Management,Appian Corporation,SINV-000003418,"401,243.60",
Dept of Health,MHRA,12/03/2018,Application Services and Maintenance,Information Management,Cognizant Worldwide Limited,CW101-0000066799,"104,824.80",123382928
Dept of Health,MHRA,12/03/2018,Application Services and Maintenance,Information Management,Cognizant Worldwide Limited,CW101-0000066800,"52,652.40",123382928
Dept of Health,MHRA,12/03/2018,Infrastructure Services and Maintenance,Information Management,IDE Group Manage Limited,0005000018A,"39,649.99",123385037
Dept of Health,MHRA,12/03/2018,Application Services and Maintenance,Information Management,TIBCO Software (Ireland) Limited,4542283,"55,936.00",
Dept of Health,MHRA,14/03/2018,Application Services and Maintenance,Information Management,Accenture (UK) Limited,3003387039,"92,981.70",788629066
Dept of Health,MHRA,14/03/2018,Solicitors,Policy,Government Legal Department,A2566a,"185,400.00",888823066
Dept of Health,MHRA,16/03/2018,Internal Audit,Finance & Procurement,Department of Health,215985,"61,380.06",888815064
Dept of Health,MHRA,16/03/2018,MHRA-administered Seminar Costs,Communications,Glasgows Ltd,15638,"28,663.66",448190633
Dept of Health,MHRA,16/03/2018,Infrastructure Services and Maintenance,Information Management,Hewlett Packard Enterprise,6051053,"57,160.44",314149679
Dept of Health,MHRA,16/03/2018,Infrastructure Services and Maintenance,Information Management,Redrock Consulting Ltd,7590,"63,482.53",862247715
Dept of Health,MHRA,16/03/2018,"Service, Integration & Management (SIAM)",Information Management,Redrock Consulting Ltd,7593,"39,017.86",862247715
Dept of Health,MHRA,16/03/2018,Application Services and Maintenance,Information Management,Sapient Ltd,49763,"78,300.00",948043217
Dept of Health,MHRA,16/03/2018,Solicitors,Policy,Government Legal Department,A2566b,"51,444.00",888823066
Dept of Health,MHRA,19/03/2018,MHRA-administered Seminar Costs,Communications,Glasgows Ltd,15553,"104,080.18",448190633
Dept of Health,MHRA,19/03/2018,Infrastructure Services and Maintenance,Information Management,Exponential-e,321993,"26,920.45",798572653
Dept of Health,MHRA,19/03/2018,Application Services and Maintenance,Information Management,Redrock Consulting Ltd,7523,"53,421.25",862247715
Dept of Health,MHRA,19/03/2018,Application Services and Maintenance,Information Management,Redrock Consulting Ltd,7589,"34,070.21",862247715
Dept of Health,MHRA,20/03/2018,Gas,Operations,Corona Energy Retail 4 Ltd,12875687,"42,546.78",577704800
Dept of Health,MHRA,20/03/2018,Electricity,Operations,EDF Energy,3940268,"60,959.31",523041202
Dept of Health,MHRA,20/03/2018,Assets Under Construction - Plant & Equipment,Operations,Eppendorf UK Ltd,92403565,"70,900.93",711243874
Dept of Health,MHRA,20/03/2018,Security,Operations,ISS Facility Services Limited,INVS/44006063,"50,767.98",945751887
Dept of Health,MHRA,20/03/2018,Assets Under Construction - Plant & Equipment,Operations,Lighthouse Instruments LLC,55493,"28,492.50",
Dept of Health,MHRA,20/03/2018,SIAM - Portfolio Services,Information Management,FDM Group ltd,252907-FM,"53,208.00",583540529
Dept of Health,MHRA,20/03/2018,Application Services and Maintenance,Information Management,Redrock Consulting Ltd,7586,"175,991.12",862247715
Dept of Health,MHRA,21/03/2018,Application Services and Maintenance,Information Management,Accenture (UK) Limited,3003387441,"46,603.20",788629066
Dept of Health,MHRA,21/03/2018,Application Services and Maintenance,Information Management,Cognizant Worldwide Limited,CW101-0000074390,"97,154.40",123382928
Dept of Health,MHRA,21/03/2018,Application Services and Maintenance,Information Management,Cognizant Worldwide Limited,CW101-0000074391,"73,963.20",123382928
Dept of Health,MHRA,21/03/2018,Application Services and Maintenance,Information Management,Sapient Ltd,49254,"126,126.00",948043217
Dept of Health,MHRA,21/03/2018,Application Services and Maintenance,Information Management,Sapient Ltd,49255,"96,276.77",948043217
Dept of Health,MHRA,21/03/2018,Infrastructure Services and Maintenance,Information Management,XMA Limited,CL68492,"34,848.00",115091937
Dept of Health,MHRA,21/03/2018,Solicitors,Policy,Government Legal Department,451498,"39,136.68",888823066
Dept of Health,MHRA,22/03/2018,Chemicals and Reagents,"Inspection, Enforcement & Standards",LGC Ltd,50660095,"62,972.39",674056721
Dept of Health,MHRA,22/03/2018,MHRA-administered Seminar Costs,Communications,Glasgows Ltd,15646,"39,760.66",448190633
Dept of Health,MHRA,22/03/2018,Library & Periodical Subscriptions,Communications,LM Information Delivery,1528237,"46,697.28",112627053
Dept of Health,MHRA,22/03/2018,Application Services and Maintenance,Information Management,Accenture (UK) Limited,3003386780,"32,874.00",788629066
Dept of Health,MHRA,22/03/2018,Application Services and Maintenance,Information Management,Accenture (UK) Limited,3003387421,"34,128.66",788629066
Dept of Health,MHRA,22/03/2018,Infrastructure Services and Maintenance,Information Management,IDE Group Manage Limited,5000674,"33,619.99",123385037
Dept of Health,MHRA,22/03/2018,Software & Licences,Information Management,Oracle Corporation UK Limited,1616646,"78,292.37",391313073
Dept of Health,MHRA,22/03/2018,SIAM - Enterprise Architecture,Information Management,Redrock Consulting Ltd,7587,"32,108.80",862247715
Dept of Health,MHRA,22/03/2018,Solicitors,Policy,Crown Prosecution Service,5355070,"69,540.00",888823164
Dept of Health,MHRA,26/03/2018,MHRA Contribution to 10 South Colonnade,Finance & Procurement,Cabinet Office,3716856,"6,961,618.00",888801080
Dept of Health,MHRA,26/03/2018,Assets Under Construction - Plant & Equipment,Operations,Parker Air Conditioning Ltd,INV24360,"28,688.78",506700965
Dept of Health,MHRA,26/03/2018,MHRA-administered Seminar Costs,Communications,Glasgows Ltd,15651,"41,938.94",448190633
Dept of Health,MHRA,26/03/2018,Application Services and Maintenance,Information Management,Accenture (UK) Limited,3003387043,"149,057.00",788629066
Dept of Health,MHRA,26/03/2018,Application Services and Maintenance,Information Management,Accenture (UK) Limited,3003387780,"29,455.20",788629066
Dept of Health,MHRA,26/03/2018,Infrastructure Services and Maintenance,Information Management,Capita IT Services Ltd,6051018458,"30,644.48",618184140
Dept of Health,MHRA,26/03/2018,Infrastructure Services and Maintenance,Information Management,EntServ UK Limited,6053840,"84,587.22",432995915
Dept of Health,MHRA,26/03/2018,Application Services and Maintenance,Information Management,Ingenica Solutions Ltd,PSI1438,"34,650.00",152777979
Dept of Health,MHRA,26/03/2018,Software & Licences,Information Management,Trustmarque Solutions Limited,2269804,"31,516.02",394593601
Dept of Health,MHRA,26/03/2018,Software & Licences,Information Management,Trustmarque Solutions Limited,2269806,"179,579.90",394593601
Dept of Health,MHRA,26/03/2018,Contracted Out Services Miscellaneous,Transformation,PA Consulting Services Ltd,10122375,"253,767.80",238535057
Dept of Health,MHRA,28/03/2018,Subcontracted Laboratory Services,Virology,Defence Science Technology Laboratories,MST012225,"98,530.80",888805068
Dept of Health,MHRA,28/03/2018,Subcontracted Laboratory Services,Virology,Public Health England,6326530,"128,446.80",888849628
